fUST/lending_fUST_20240721
["ID","MTS","AMOUNT","RATE_DAILY","PERIOD"]
[332739561,1721495460664,-500.0,0.00014794,2]
[332739562,1721495460674,-500.0,0.00014794,2]
[332739563,1721495460684,-30.48445001,0.00014794,2]
[332739564,1721495461949,-500.0,0.00013698,2]
[332739565,1721495461959,-5138.6528656,0.00013698,2]
[332739566,1721495462001,-0.01864827,0.00013698,2]
[332739567,1721495548195,162.80758887,9.999e-05,2]
[332739589,1721496552679,154.77557542,9.999e-05,2]
[332739646,1721496637962,-300.0,0.00011872,2]
[332739647,1721496637973,-300.0,0.00011872,2]
[332739648,1721496637985,-1268.33701767,0.00011873,2]
[332739649,1721496637998,-23631.66298233,0.00011873,2]
[332739650,1721496638008,-154.77557542,0.0001212,2]
[332739651,1721496638017,-412.24956488,0.00012177,2]
[332739652,1721496638026,-412.24956477,0.00012177,2]
[332739653,1721496638035,-412.24956477,0.00012177,2]
[332739654,1721496638044,-412.24956477,0.00012177,2]
[332739656,1721496638055,-412.24956477,0.00012177,2]
[332739657,1721496638066,-412.24956477,0.00012177,2]
[332739658,1721496638077,-412.24956477,0.00012177,2]
[332739659,1721496638086,-412.24956477,0.00012177,2]
[332739660,1721496638096,-412.24956477,0.00012177,2]
[332739661,1721496638106,-412.24956477,0.00012177,2]
[332739662,1721496638115,-412.24956477,0.00012178,2]
[332739663,1721496638125,-412.24956477,0.00012178,2]
[332739664,1721496638134,-412.24956477,0.00012178,2]
[332739665,1721496638143,-412.24956477,0.00012178,2]
[332739666,1721496638153,-412.24956477,0.00012178,2]
[332739667,1721496638164,-412.24956477,0.00012178,2]
[332739668,1721496638173,-250.0,0.00012604,2]
[332739669,1721496638182,-250.0,0.00012638,2]
[332739670,1721496638191,-250.0,0.00012673,2]
[332739671,1721496638202,-250.0,0.00012707,2]
[332739672,1721496638212,-250.0,0.00012742,2]
[332739673,1721496638222,-250.0,0.00012777,2]
[332739674,1721496638232,-250.0,0.00012811,2]
[332739675,1721496638242,-250.0,0.00012846,2]
[332739676,1721496638252,-250.0,0.0001288,2]
[332739677,1721496638262,-5592.13592259,0.000129,2]
[332739678,1721496638273,-250.0,0.00012915,2]
[332739679,1721496638283,-250.0,0.00012949,2]
[332739680,1721496638294,-250.0,0.00012984,2]
[332739681,1721496638303,-5592.13592259,0.00013,2]
[332739682,1721496638315,-250.0,0.00013019,2]
[332739683,1721496638326,-250.0,0.00013053,2]
[332739684,1721496638336,-420.0,0.00013059,2]
[332739685,1721496638347,-250.0,0.00013088,2]
[332739686,1721496638356,-250.0,0.00013122,2]
[332739687,1721496638365,-250.0,0.00013157,2]
[332739688,1721496638374,-250.0,0.00013191,2]
[332739689,1721496638384,-250.0,0.00013226,2]
[332739690,1721496638393,-250.0,0.00013261,2]
[332739691,1721496638402,-2000.0,0.00013598,2]
[332739692,1721496638412,-52981.31849723,0.00013688,2]
[332739693,1721496638423,-211685.40258877,0.00013688,2]
[332739694,1721496638433,-415.40006375,0.00013698,2]
[332739695,1721496638442,-500.0,0.00013698,2]
[332739696,1721496638451,-500.0,0.00013698,2]
[332739697,1721496638460,-500.0,0.00013698,2]
[332739698,1721496638470,-264.08558091,0.00013698,2]
[332739699,1721496638478,-500.0,0.00013698,2]
[332739700,1721496638488,-389.88642481,0.00013698,2]
[332739701,1721496638498,-500.0,0.00013698,2]
[332739702,1721496638507,-500.0,0.00013698,2]
[332739703,1721496638516,-500.0,0.00013698,2]
[332739704,1721496638526,-625.97367734,0.00013698,2]
[332739705,1721496638535,-511.09114034,0.00013698,2]
[332739706,1721496638543,-230.44075946,0.00013698,2]
[332739707,1721496638553,-285.0,0.00013698,2]
[332739708,1721496638564,-500.0,0.00013698,2]
[332739709,1721496638573,-500.0,0.00013698,2]
[332739710,1721496638582,-500.0,0.00013698,2]
[332739711,1721496638591,-300.0,0.00013698,2]
[332739712,1721496638601,-500.0,0.00013698,2]
[332739713,1721496638610,-338.05094105,0.00013698,2]
[332739714,1721496638619,-500.0,0.00013698,2]
[332739715,1721496638628,-500.0,0.00013698,2]
[332739716,1721496638638,-348.77204299,0.00013698,2]
[332739717,1721496638647,-500.0,0.00013698,2]
[332739718,1721496638656,-260.92524854,0.00013698,2]
[332739719,1721496638665,-500.0,0.00013698,2]
[332739720,1721496638673,-650.0,0.00013698,2]
[332739721,1721496638682,-176.75719991,0.00013698,2]
[332739722,1721496638691,-500.0,0.00013698,2]
[332739723,1721496638700,-599.99999999,0.00013698,2]
[332739724,1721496638710,-500.0,0.00013698,2]
[332739725,1721496638719,-500.0,0.00013698,2]
[332739726,1721496638728,-500.0,0.00013698,2]
[332739727,1721496638737,-500.0,0.00013698,2]
[332739728,1721496638745,-500.0,0.00013698,2]
[332739729,1721496638754,-500.0,0.00013698,2]
[332739730,1721496638764,-166.29134175,0.00013698,2]
[332739731,1721496638774,-219.34693459,0.00013698,2]
[332739732,1721496638784,-500.0,0.00013698,2]
[332739733,1721496638794,-500.0,0.00013698,2]
[332739734,1721496638802,-500.0,0.00013698,2]
[332739735,1721496638814,-500.0,0.00013698,2]
[332739736,1721496638823,-500.0,0.00013698,2]
[332739737,1721496638833,-500.0,0.00013698,2]
[332739738,1721496638843,-500.0,0.00013698,2]
[332739739,1721496638853,-500.0,0.00013698,2]
[332739740,1721496638864,-472.35996413,0.00013698,2]
[332739741,1721496638873,-500.0,0.00013698,2]
[332739742,1721496638883,-500.0,0.00013698,2]
[332739743,1721496638892,-500.0,0.00013698,2]
[332739744,1721496638902,-500.0,0.00013698,2]
[332739745,1721496638912,-277.90945275,0.00013698,2]
[332739746,1721496638922,-173.24065738,0.00013698,2]
[332739747,1721496638932,-500.0,0.00013698,2]
[332739748,1721496638942,-524.73135772,0.00013698,2]
[332739749,1721496638952,-500.0,0.00013698,2]
[332739750,1721496638962,-509.05096793,0.00013698,2]
[332739751,1721496638971,-630.86,0.00013698,2]
[332739752,1721496638980,-500.0,0.00013698,2]
[332739753,1721496638989,-500.0,0.00013698,2]
[332739754,1721496638998,-500.0,0.00013698,2]
[332739755,1721496639008,-512.08117975,0.00013698,2]
[332739756,1721496639018,-500.0,0.00013698,2]
[332739757,1721496639028,-505.36147925,0.00013698,2]
[332739758,1721496639038,-951.81,0.00013698,2]
[332739759,1721496639047,-500.0,0.00013698,2]
[332739760,1721496639057,-500.0,0.00013698,2]
[332739761,1721496639071,-545.78111125,0.00013698,2]
[332739762,1721496639080,-765.85,0.00013698,2]
[332739763,1721496639090,-500.0,0.00013698,2]
[332739764,1721496639099,-571.89745073,0.00013698,2]
[332739765,1721496639110,-500.0,0.00013698,2]
[332739766,1721496639120,-587.48,0.00013698,2]
[332739767,1721496639129,-500.0,0.00013698,2]
[332739768,1721496639138,-599.98,0.00013698,2]
[332739769,1721496639148,-500.0,0.00013698,2]
[332739770,1721496639157,-500.0,0.00013698,2]
[332739771,1721496639166,-823.6,0.00013698,2]
[332739772,1721496639175,-953.24,0.00013698,2]
[332739773,1721496639184,-500.0,0.00013698,2]
[332739774,1721496639193,-676.97,0.00013698,2]
[332739775,1721496639203,-500.0,0.00013698,2]
[332739776,1721496639212,-503.50562691,0.00013698,2]
[332739777,1721496639221,-500.0,0.00013698,2]
[332739778,1721496639231,-501.77387035,0.00013698,2]
[332739779,1721496639240,-500.0,0.00013698,2]
[332739780,1721496639249,-500.0,0.00013698,2]
[332739781,1721496639258,-500.0,0.00013698,2]
[332739782,1721496639267,-500.0,0.00013698,2]
[332739783,1721496639276,-500.0,0.00013698,2]
[332739784,1721496639286,-500.0,0.00013698,2]
[332739785,1721496639295,-1167.05,0.00013698,2]
[332739786,1721496639304,-500.0,0.00013698,2]
[332739787,1721496639315,-500.0,0.00013698,2]
[332739788,1721496639325,-555.93805008,0.00013698,2]
[332739789,1721496639334,-500.0,0.00013698,2]
[332739790,1721496639343,-470.93359713,0.00013698,2]
[332739791,1721496639353,-500.0,0.00013698,2]
[332739792,1721496639362,-500.0,0.00013698,2]
[332739793,1721496639371,-500.0,0.00013698,2]
[332739794,1721496639380,-169.08451912,0.00013698,2]
[332739795,1721496639388,-500.0,0.00013698,2]
[332739796,1721496639398,-500.0,0.00013698,2]
[332739797,1721496639408,-572.79,0.00013698,2]
[332739799,1721496639417,-500.0,0.00013698,2]
[332739801,1721496639427,-281.9230277,0.00013698,2]
[332739803,1721496639436,-708.76,0.00013698,2]
[332739805,1721496639446,-500.0,0.00013698,2]
[332739807,1721496639455,-173.75511392,0.00013698,2]
[332739809,1721496639464,-500.0,0.00013698,2]
[332739811,1721496639473,-500.0,0.00013698,2]
[332739813,1721496639483,-500.0,0.00013698,2]
[332739815,1721496639492,-500.0,0.00013698,2]
[332739817,1721496639501,-500.0,0.00013698,2]
[332739819,1721496639511,-500.0,0.00013698,2]
[332739821,1721496639521,-500.0,0.00013698,2]
[332739823,1721496639530,-400.0,0.00013698,2]
[332739825,1721496639540,-500.0,0.00013698,2]
[332739827,1721496639550,-500.0,0.00013698,2]
[332739829,1721496639561,-500.0,0.00013698,2]
[332739830,1721496639574,-520.9477985,0.00013698,2]
[332739831,1721496639584,-500.0,0.00013698,2]
[332739833,1721496639593,-708.28,0.00013698,2]
[332739835,1721496639602,-541.33,0.00013698,2]
[332739836,1721496639611,-245.08411045,0.00013698,2]
[332739837,1721496639621,-500.0,0.00013698,2]
[332739838,1721496639631,-500.0,0.00013698,2]
[332739839,1721496639640,-507.42940929,0.00013698,2]
[332739840,1721496639651,-500.0,0.00013698,2]
[332739841,1721496639660,-500.0,0.00013698,2]
[332739842,1721496639669,-500.0,0.00013698,2]
[332739843,1721496639678,-500.0,0.00013698,2]
[332739844,1721496639688,-500.0,0.00013698,2]
[332739845,1721496639697,-500.0,0.00013698,2]
[332739846,1721496639708,-150.0,0.00013698,2]
[332739847,1721496639719,-500.0,0.00013698,2]
[332739848,1721496639730,-500.0,0.00013698,2]
[332739849,1721496639740,-500.0,0.00013698,2]
[332739851,1721496639751,-500.0,0.00013698,2]
[332739853,1721496639760,-500.0,0.00013698,2]
[332739855,1721496639773,-500.0,0.00013698,2]
[332739856,1721496639782,-500.0,0.00013698,2]
[332739858,1721496639792,-916.65,0.00013698,2]
[332739859,1721496639802,-500.0,0.00013698,2]
[332739860,1721496639813,-877.73,0.00013698,2]
[332739861,1721496639823,-256.28354357,0.00013698,2]
[332739862,1721496639833,-530.72,0.00013698,2]
[332739863,1721496639842,-500.0,0.00013698,2]
[332739865,1721496639851,-500.0,0.00013698,2]
[332739867,1721496639864,-500.0,0.00013698,2]
[332739869,1721496639874,-662.6,0.00013698,2]
[332739871,1721496639884,-500.0,0.00013698,2]
[332739873,1721496639894,-500.0,0.00013698,2]
[332739875,1721496639905,-500.0,0.00013698,2]
[332739876,1721496639915,-500.0,0.00013698,2]
[332739878,1721496639926,-500.0,0.00013698,2]
[332739879,1721496639936,-500.0,0.00013698,2]
[332739880,1721496639947,-500.0,0.00013698,2]
[332739882,1721496640166,-500.0,0.00013698,2]
[332739883,1721496640176,-500.0,0.00013698,2]
[332739884,1721496640186,-500.0,0.00013698,2]
[332739885,1721496640195,-503.81,0.00013698,2]
[332739886,1721496640205,-500.0,0.00013698,2]
[332739887,1721496640214,-694.98,0.00013698,2]
[332739888,1721496640223,-500.0,0.00013698,2]
[332739889,1721496640233,-500.0,0.00013698,2]
[332739890,1721496640243,-500.0,0.00013698,2]
[332739891,1721496640252,-500.0,0.00013698,2]
[332739892,1721496640262,-500.0,0.00013698,2]
[332739893,1721496640272,-1331.09,0.00013698,2]
[332739894,1721496640281,-500.0,0.00013698,2]
[332739895,1721496640290,-542.0321779,0.00013698,2]
[332739896,1721496640300,-500.55636249,0.00013698,2]
[332739897,1721496640311,-500.0,0.00013698,2]
[332739898,1721496640320,-500.0,0.00013698,2]
[332739899,1721496640331,-500.0,0.00013698,2]
[332739900,1721496640340,-513.30695711,0.00013698,2]
[332739901,1721496640350,-585.07,0.00013698,2]
[332739902,1721496640359,-500.0,0.00013698,2]
[332739903,1721496640369,-850.73,0.00013698,2]
[332739904,1721496640379,-541.56,0.00013698,2]
[332739905,1721496640389,-500.0,0.00013698,2]
[332739906,1721496640398,-482.34424015,0.00013698,2]
[332739907,1721496640407,-519.12,0.00013698,2]
[332739908,1721496640416,-289.40371987,0.00013698,2]
[332739909,1721496640425,-508.54564734,0.00013698,2]
[332739910,1721496640435,-500.0,0.00013698,2]
[332739911,1721496640443,-554.99193017,0.00013698,2]
[332739912,1721496640453,-2303.78,0.00013698,2]
[332739913,1721496640462,-1412.14,0.00013698,2]
[332739914,1721496640471,-505.11920375,0.00013698,2]
[332739915,1721496640481,-500.0,0.00013698,2]
[332739916,1721496640490,-571.25,0.00013698,2]
[332739917,1721496640500,-500.0,0.00013698,2]
[332739918,1721496640509,-617.06,0.00013698,2]
[332739919,1721496640520,-500.0,0.00013698,2]
[332739920,1721496640529,-507.77956758,0.00013698,2]
[332739921,1721496640538,-510.80465162,0.00013698,2]
[332739922,1721496640549,-2326.72,0.00013698,2]
[332739923,1721496640561,-645.64,0.00013698,2]
[332739924,1721496640570,-500.0,0.00013698,2]
[332739925,1721496640579,-2993.58,0.00013698,2]
[332739926,1721496640588,-500.0,0.00013698,2]
[332739927,1721496640599,-500.0,0.00013698,2]
[332739928,1721496640609,-500.0,0.00013698,2]
[332739929,1721496640619,-500.0,0.00013698,2]
[332739930,1721496640628,-522.90105176,0.00013698,2]
[332739931,1721496640637,-500.0,0.00013698,2]
[332739932,1721496640647,-500.0,0.00013698,2]
[332739933,1721496640656,-500.0,0.00013698,2]
[332739934,1721496640665,-169.45526111,0.00013698,2]
[332739935,1721496640674,-2225.17,0.00013698,2]
[332739936,1721496640684,-536.17445901,0.00013698,2]
[332739937,1721496640693,-3334.11,0.00013698,2]
[332739938,1721496640703,-500.0,0.00013698,2]
[332739939,1721496640713,-500.0,0.00013698,2]
[332739940,1721496640722,-500.0,0.00013698,2]
[332739941,1721496640732,-500.0,0.00013698,2]
[332739942,1721496640742,-500.0,0.00013698,2]
[332739943,1721496640751,-660.59,0.00013698,2]
[332739944,1721496640760,-500.0,0.00013698,2]
[332739945,1721496640771,-500.0,0.00013698,2]
[332739946,1721496640780,-545.13,0.00013698,2]
[332739947,1721496640789,-1126.65,0.00013698,2]
[332739948,1721496640800,-500.0,0.00013698,2]
[332739949,1721496640809,-500.0,0.00013698,2]
[332739950,1721496640819,-500.0,0.00013698,2]
[332739951,1721496640828,-500.0,0.00013698,2]
[332739952,1721496640838,-1007.13,0.00013698,2]
[332739953,1721496640848,-788.19,0.00013698,2]
[332739954,1721496640858,-500.0,0.00013698,2]
[332739955,1721496640871,-1345.49,0.00013698,2]
[332739956,1721496640881,-500.0,0.00013698,2]
[332739957,1721496640890,-250.0,0.00013698,2]
[332739958,1721496640900,-553.59452076,0.00013698,2]
[332739959,1721496640910,-500.0,0.00013698,2]
[332739960,1721496640920,-500.0,0.00013698,2]
[332739961,1721496640929,-504.00214773,0.00013698,2]
[332739962,1721496640938,-500.0,0.00013698,2]
[332739963,1721496640948,-597.81,0.00013698,2]
[332739964,1721496640958,-500.0,0.00013698,2]
[332739965,1721496640967,-243.27925045,0.00013698,2]
[332739966,1721496640977,-500.0,0.00013698,2]
[332739967,1721496640987,-619.68,0.00013698,2]
[332739968,1721496640996,-766.44,0.00013698,2]
[332739969,1721496641006,-500.0,0.00013698,2]
[332739970,1721496641015,-500.0,0.00013698,2]
[332739971,1721496641024,-500.0,0.00013698,2]
[332739972,1721496641034,-535.93,0.00013698,2]
[332739973,1721496641043,-500.0,0.00013698,2]
[332739974,1721496641053,-509.41848931,0.00013698,2]
[332739975,1721496641062,-500.0,0.00013698,2]
[332739976,1721496641072,-500.0,0.00013698,2]
[332739977,1721496641081,-500.0,0.00013698,2]
[332739978,1721496641091,-500.0,0.00013698,2]
[332739979,1721496641100,-602.39,0.00013698,2]
[332739980,1721496641109,-500.0,0.00013698,2]
[332739981,1721496641119,-590.19,0.00013698,2]
[332739982,1721496641129,-500.0,0.00013698,2]
[332739983,1721496641138,-4278.72,0.00013698,2]
[332739984,1721496641148,-250.0,0.00013698,2]
[332739985,1721496641157,-500.0,0.00013698,2]
[332739986,1721496641166,-500.0,0.00013698,2]
[332739987,1721496641176,-500.0,0.00013698,2]
[332739988,1721496641186,-500.0,0.00013698,2]
[332739989,1721496641195,-500.0,0.00013698,2]
[332739990,1721496641204,-500.0,0.00013698,2]
[332739991,1721496641214,-500.0,0.00013698,2]
[332739992,1721496641223,-500.0,0.00013698,2]
[332739993,1721496641233,-1407.61,0.00013698,2]
[332739994,1721496641242,-591.25,0.00013698,2]
[332739995,1721496641251,-1142.92,0.00013698,2]
[332739996,1721496641260,-949.77,0.00013698,2]
[332739997,1721496641270,-513.24561122,0.00013698,2]
[332739998,1721496641279,-501.71905467,0.00013698,2]
[332739999,1721496641288,-553.52,0.00013698,2]
[332740000,1721496641297,-500.0,0.00013698,2]
[332740001,1721496641306,-500.0,0.00013698,2]
[332740002,1721496641317,-500.0,0.00013698,2]
[332740003,1721496641327,-2000.0,0.00013698,2]
[332740004,1721496641336,-1972.47,0.00013698,2]
[332740005,1721496641346,-500.0,0.00013698,2]
[332740006,1721496641355,-691.03,0.00013698,2]
[332740007,1721496641364,-787.87,0.00013698,2]
[332740008,1721496641373,-500.0,0.00013698,2]
[332740009,1721496641382,-582.28461375,0.00013698,2]
[332740010,1721496641391,-1286.36,0.00013698,2]
[332740011,1721496641400,-582.4,0.00013698,2]
[332740012,1721496641410,-515.12988625,0.00013698,2]
[332740013,1721496641419,-500.0,0.00013698,2]
[332740014,1721496641429,-500.0,0.00013698,2]
[332740015,1721496641438,-507.45038816,0.00013698,2]
[332740016,1721496641447,-505.04670102,0.00013698,2]
[332740017,1721496641456,-500.0,0.00013698,2]
[332740018,1721496641465,-500.0,0.00013698,2]
[332740019,1721496641474,-500.0,0.00013698,2]
[332740020,1721496641483,-1912.39,0.00013698,2]
[332740021,1721496641492,-500.0,0.00013698,2]
[332740022,1721496641501,-500.0,0.00013698,2]
[332740023,1721496641511,-814.65,0.00013698,2]
[332740024,1721496641520,-500.0,0.00013698,2]
[332740025,1721496641529,-500.0,0.00013698,2]
[332740026,1721496641538,-500.0,0.00013698,2]
[332740027,1721496641547,-500.0,0.00013698,2]
[332740028,1721496641556,-500.0,0.00013698,2]
[332740029,1721496641566,-500.0,0.00013698,2]
[332740030,1721496641574,-500.0,0.00013698,2]
[332740031,1721496641584,-500.0,0.00013698,2]
[332740032,1721496641593,-538.82,0.00013698,2]
[332740033,1721496641602,-500.0,0.00013698,2]
[332740034,1721496641611,-500.0,0.00013698,2]
[332740035,1721496641620,-500.0,0.00013698,2]
[332740036,1721496641629,-500.0,0.00013698,2]
[332740037,1721496641638,-608.63406425,0.00013698,2]
[332740038,1721496641647,-500.0,0.00013698,2]
[332740039,1721496641657,-500.0,0.00013698,2]
[332740040,1721496641665,-500.0,0.00013698,2]
[332740041,1721496641675,-500.0,0.00013698,2]
[332740042,1721496641684,-893.95,0.00013698,2]
[332740043,1721496641692,-973.63,0.00013698,2]
[332740044,1721496641702,-500.0,0.00013698,2]
[332740045,1721496641711,-500.0,0.00013698,2]
[332740046,1721496641720,-500.0,0.00013698,2]
[332740047,1721496641730,-500.0,0.00013698,2]
[332740048,1721496641739,-500.0,0.00013698,2]
[332740049,1721496641748,-500.0,0.00013698,2]
[332740050,1721496641757,-500.0,0.00013698,2]
[332740051,1721496641766,-500.0,0.00013698,2]
[332740052,1721496641775,-934.67,0.00013698,2]
[332740053,1721496641785,-500.0,0.00013698,2]
[332740054,1721496641795,-1025.57,0.00013698,2]
[332740055,1721496641806,-500.0,0.00013698,2]
[332740056,1721496641818,-500.0,0.00013698,2]
[332740057,1721496641828,-511.32174449,0.00013698,2]
[332740058,1721496641838,-2847.46,0.00013698,2]
[332740059,1721496641847,-500.0,0.00013698,2]
[332740060,1721496641858,-2169.45,0.00013698,2]
[332740061,1721496641874,-627.3,0.00013698,2]
[332740062,1721496641883,-500.0,0.00013698,2]
[332740063,1721496641894,-500.0,0.00013698,2]
[332740064,1721496641905,-1085.8,0.00013698,2]
[332740065,1721496641915,-1869.16,0.00013698,2]
[332740067,1721496641925,-1046.78,0.00013698,2]
[332740069,1721496641935,-500.0,0.00013698,2]
[332740070,1721496641947,-2123.05,0.00013698,2]
[332740072,1721496641957,-502.03808671,0.00013698,2]
[332740074,1721496641966,-500.0,0.00013698,2]
[332740075,1721496641976,-500.0,0.00013698,2]
[332740076,1721496641986,-2305.47,0.00013698,2]
[332740078,1721496641995,-556.66494551,0.00013698,2]
[332740079,1721496642005,-542.29,0.00013698,2]
[332740080,1721496642015,-2780.97,0.00013698,2]
[332740081,1721496642024,-510.37104917,0.00013698,2]
[332740082,1721496642033,-500.0,0.00013698,2]
[332740083,1721496642043,-500.0,0.00013698,2]
[332740084,1721496642053,-752.88,0.00013698,2]
[332740085,1721496642064,-500.0,0.00013698,2]
[332740086,1721496642074,-500.0,0.00013698,2]
[332740087,1721496642084,-500.0,0.00013698,2]
[332740088,1721496642094,-500.0,0.00013698,2]
[332740089,1721496642106,-500.0,0.00013698,2]
[332740090,1721496642115,-500.0,0.00013698,2]
[332740091,1721496642124,-500.4941119,0.00013698,2]
[332740092,1721496642133,-500.0,0.00013698,2]
[332740093,1721496642143,-500.0,0.00013698,2]
[332740094,1721496642152,-500.0,0.00013698,2]
[332740095,1721496642161,-500.0,0.00013698,2]
[332740096,1721496642171,-750.94,0.00013698,2]
[332740097,1721496642181,-500.0,0.00013698,2]
[332740098,1721496642190,-500.0,0.00013698,2]
[332740099,1721496642199,-500.0,0.00013698,2]
[332740100,1721496642208,-500.0,0.00013698,2]
[332740101,1721496642218,-500.0,0.00013698,2]
[332740102,1721496642227,-500.0,0.00013698,2]
[332740103,1721496642236,-501.43999562,0.00013698,2]
[332740104,1721496642245,-500.0,0.00013698,2]
[332740105,1721496642255,-503.04863189,0.00013698,2]
[332740106,1721496642265,-521.45625736,0.00013698,2]
[332740107,1721496642274,-503.14598103,0.00013698,2]
[332740108,1721496642284,-1399.74,0.00013698,2]
[332740109,1721496642293,-177.09484028,0.00013698,2]
[332740110,1721496642302,-515.92719608,0.00013698,2]
[332740111,1721496642311,-1844.21,0.00013698,2]
[332740112,1721496642323,-1446.15,0.00013698,2]
[332740113,1721496642333,-551.34285931,0.00013698,2]
[332740114,1721496642344,-500.0,0.00013698,2]
[332740115,1721496642354,-500.0,0.00013698,2]
[332740116,1721496642364,-2783.24,0.00013698,2]
[332740117,1721496642374,-500.0,0.00013698,2]
[332740118,1721496642385,-3985.56,0.00013698,2]
[332740119,1721496642394,-398.38256931,0.00013698,2]
[332740120,1721496642404,-961.14,0.00013698,2]
[332740122,1721496642413,-500.0,0.00013698,2]
[332740124,1721496642423,-503.70346198,0.00013698,2]
[332740125,1721496642434,-505.93712617,0.00013698,2]
[332740126,1721496642443,-500.0,0.00013698,2]
[332740127,1721496642453,-500.0,0.00013698,2]
[332740128,1721496642462,-335.80325809,0.00013698,2]
[332740129,1721496642471,-500.0,0.00013698,2]
[332740130,1721496642482,-500.0,0.00013698,2]
[332740131,1721496642493,-500.0,0.00013698,2]
[332740132,1721496642502,-500.0,0.00013698,2]
[332740133,1721496642512,-1676.12,0.00013698,2]
[332740134,1721496642521,-500.0,0.00013698,2]
[332740135,1721496642530,-500.0,0.00013698,2]
[332740136,1721496642539,-507.53,0.00013698,2]
[332740137,1721496642549,-500.0,0.00013698,2]
[332740138,1721496642559,-2228.19,0.00013698,2]
[332740139,1721496642568,-626.67,0.00013698,2]
[332740140,1721496642578,-500.0,0.00013698,2]
[332740141,1721496642589,-500.0,0.00013698,2]
[332740142,1721496642599,-499.97734961,0.00013698,2]
[332740143,1721496642609,-581.03636157,0.00013698,2]
[332740144,1721496642621,-794.98,0.00013698,2]
[332740145,1721496642632,-501.25801672,0.00013698,2]
[332740146,1721496642641,-500.0,0.00013698,2]
[332740147,1721496642650,-976.92,0.00013698,2]
[332740148,1721496642661,-2251.38,0.00013698,2]
[332740149,1721496642671,-500.0,0.00013698,2]
[332740150,1721496642681,-500.0,0.00013698,2]
[332740151,1721496642692,-1220.77,0.00013698,2]
[332740152,1721496642702,-652.54,0.00013698,2]
[332740153,1721496642712,-710.1,0.00013698,2]
[332740154,1721496642721,-2877.84,0.00013698,2]
[332740156,1721496642731,-500.0,0.00013698,2]
[332740157,1721496642742,-1137.55,0.00013698,2]
[332740158,1721496642751,-500.0,0.00013698,2]
[332740159,1721496642761,-500.0,0.00013698,2]
[332740160,1721496642771,-500.0,0.00013698,2]
[332740161,1721496642780,-500.0,0.00013698,2]
[332740162,1721496642792,-500.0,0.00013698,2]
[332740163,1721496642802,-10408.57,0.00013698,2]
[332740164,1721496642811,-771.58,0.00013698,2]
[332740167,1721496642820,-3766.42,0.00013698,2]
[332740170,1721496642830,-605.36,0.00013698,2]
[332740173,1721496642839,-213.5647246,0.00013698,2]
[332740176,1721496642849,-500.0,0.00013698,2]
[332740179,1721496642860,-500.0,0.00013698,2]
[332740183,1721496642873,-1001.81,0.00013698,2]
[332740186,1721496642883,-500.0,0.00013698,2]
[332740188,1721496642892,-500.0,0.00013698,2]
[332740190,1721496642901,-501.59185014,0.00013698,2]
[332740192,1721496642913,-500.0,0.00013698,2]
[332740194,1721496642923,-705.22,0.00013698,2]
[332740196,1721496642933,-500.0,0.00013698,2]